[Event "44th Chess Olympiad Open 2022"]
[Site "Chennai"]
[Date "2022.08.02"]
[Round "5.8"]
[White "Sindarov, Javokhir"]
[Black "Druska, Juraj"]
[Result "1-0"]
[WhiteElo "2629"]
[BlackElo "2519"]
[Annotator "TA"]
[PlyCount "75"]
[EventDate "2022.??.??"]
[TimeControl "60"]

{[%evp 19,75,33,30,32,38,29,31,29,36,39,36,29,68,70,66,58,72,66,103,90,104,102,
99,99,97,97,104,91,99,97,106,96,202,199,211,207,224,212,277,276,272,264,267,
254,245,213,403,396,394,393,482,468,589,574,565,554,810,780]} 1. e4 {[%emt 0:
00:00]} c6 {[%emt 0:00:23]} 2. d4 {[%emt 0:02:10]} d5 {[%emt 0:00:08]} 3. exd5
{[%emt 0:00:55]} cxd5 {[%emt 0:00:09]} 4. c4 {[%emt 0:00:05]} Nf6 {[%emt 0:00:
00]} 5. Nc3 {[%emt 0:00:27]} g6 {[%emt 0:00:13]} 6. cxd5 {[%emt 0:05:10]} Bg7 {
[%emt 0:01:00]} 7. Bb5+ {[%emt 0:05:05]} Nbd7 {[%emt 0:01:28]} 8. d6 {[%emt 0:
00:00]} exd6 {[%emt 0:07:36]} 9. Qe2+ {[%emt 0:00:55]} Qe7 {[%emt 0:00:39]} 10.
Bf4 {[%emt 0:00:30]} d5 {[%emt 0:10:39]} 11. Bd6 {[%emt 0:13:09][%csl Gd6]
[%cal Re2e7] B14: Caro-Kann: Panov-Botvinnik Attack with 5...e6 and 5...g6.}
Qxe2+ {[%emt 0:11:50]} 12. Ngxe2 {[%emt 0:00:07]} a6 {[%emt 0:00:53]} 13. Ba4 {
[%emt 0:00:29] White is slightly better.} b5 {[%emt 0:06:58]} 14. Bb3 {[%emt 0:
00:00]} Nb6 {[%emt 0:10:09]} 15. a4 {[%emt 0:08:58]} bxa4 {[%emt 0:20:36]} 16.
Nxa4 {[%emt 0:00:07]} Nxa4 {[%emt 0:00:10]} (16... Nc4 $2 17. Bxc4 dxc4 18. Nb6
$18) 17. Bxa4+ {[%emt 0:00:05]} Bd7 {[%emt 0:00:06] [#]} 18. Nc3 $146 {[%emt 0:
00:00]} ({Predecessor:} 18. f3 Bxa4 19. Rxa4 Kd7 20. Be5 Ne8 21. Kd2 Bxe5 22.
dxe5 Nc7 23. Nd4 Rab8 24. b3 {½-½ (43) Tassopoulos,M (2265)-Goumas,G (2121)
Athens 2006}) 18... O-O-O {[%emt 0:11:06] [#] Strongly threatening ...Bxa4.}
19. Be5 $1 {[%emt 0:00:59]} Nh5 {[%emt 0:01:48]} 20. Bxd7+ {[%emt 0:05:14]}
Kxd7 {[%emt 0:02:08]} 21. Rxa6 {[%emt 0:02:19]} f6 {[%emt 0:01:49]} 22. Ra7+ {
[%emt 0:03:01]} (22. Nxd5 fxe5 23. g4 Nf4 24. Ra7+ (24. Nxf4 $2 Ra8 $19) 24...
Kd6 25. Nxf4 {[#]} Ra8 $1 26. Rxg7 (26. dxe5+ $2 Bxe5 27. Rxa8 Rxa8 $19) 26...
Ra1+ 27. Ke2 Rxh1 28. dxe5+ Kxe5 $17) 22... Ke6 {[%emt 0:02:03]} 23. Bc7 {
[%emt 0:00:15] 0x0.001f211afbd2dp-1022s more active pieces.} Ra8 {[%emt 0:00:
00]} 24. Rxa8 {[%emt 0:01:23]} Rxa8 {[%emt 0:00:01]} 25. Kd2 {[%emt 0:04:49]}
Bh6+ {[%emt 0:00:32]} (25... Bf8 $16) 26. Kc2 $18 {[%emt 0:00:27]} Kd7 {
[%emt 0:02:37]} 27. Bg3 {[%emt 0:00:11]} (27. Nxd5 Kc6 28. Nxf6 (28. Nb6 Re8
$17) 28... Nxf6 $17) 27... f5 {[%emt 0:01:13]} 28. Be5 {[%emt 0:00:48]} ({
Much less strong is} 28. Nxd5 Kc6) 28... Kc6 {[%emt 0:01:27]} 29. b4 {[%emt 0:
00:00][%cal Yb2b4,Yb4b5]} Nf4 {[%emt 0:01:09]} 30. b5+ {[%emt 0:00:11]} Kb7 {
[%emt 0:00:23]} 31. Bxf4 {[%emt 0:01:04]} Bxf4 {[%emt 0:00:01] Endgame KRB-KRN}
32. Re1 {[%emt 0:00:08] And now Re7+ would win.} ({Don't take} 32. Nxd5 $6 Ra2+
33. Kb3 Rxf2 $16) 32... Bxh2 $2 {[%emt 0:02:29]} (32... Bd6 33. Re6 (33. Nxd5
Ra2+ 34. Kb3 Ra3+ 35. Kc4 Ra4+ 36. Kd3 Ra3+ 37. Nc3 Bb4 $16) 33... Rd8 34. Nxd5
Ba3) 33. Rh1 {[%emt 0:02:02]} Bd6 {[%emt 0:01:10]} 34. Rxh7+ {[%emt 0:00:05]}
Kb6 {[%emt 0:00:05]} 35. Rg7 {[%emt 0:00:05] White is clearly winning.} Ka5 {
[%emt 0:02:56]} 36. Rxg6 {[%emt 0:00:08]} Bh2 {[%emt 0:00:42]} 37. Rh6 {
[%emt 0:01:07]} Bg1 {[%emt 0:00:14]} 38. Rh1 {[%emt 0:00:00] Weighted Error
Value: White=0.02 (flawless) /Black=0.31} 1-0

[Event "44th Chess Olympiad Open 2022"]
[Site "Chennai"]
[Date "2022.08.02"]
[Round "5.8"]
[White "Gazik, Viktor"]
[Black "Yakubboev, Nodirbek"]
[Result "0-1"]
[WhiteElo "2544"]
[BlackElo "2620"]
[Annotator "TA"]
[PlyCount "80"]
[EventDate "2022.??.??"]
[TimeControl "60"]

{[%evp 11,80,0,0,0,0,20,14,18,10,6,31,7,12,20,14,15,52,49,40,53,39,38,41,-26,0,
0,0,-10,-10,-30,-23,-14,-4,-11,4,-18,-13,-18,-11,-61,-53,-63,-62,-54,-42,-63,
-63,-72,-85,-335,-61,-77,-75,-68,-75,-120,-127,-150,-160,-521,-481,-567,-396,
-29995,-29996,-29996,-29997,-29997,-29998,-29998,-29999]} 1. e4 {[%emt 0:00:03]
} e5 {[%emt 0:00:06]} 2. Nf3 {[%emt 0:00:04]} Nc6 {[%emt 0:00:04]} 3. d4 {
[%emt 0:00:05]} exd4 {[%emt 0:00:07]} 4. Nxd4 {[%emt 0:00:03]} Bc5 {[%emt 0:00:
00]} 5. Nb3 {[%emt 0:05:52]} Bb6 {[%emt 0:00:18]} 6. Nc3 {[%emt 0:02:04]} Nf6 {
[%emt 0:00:05]} 7. Qe2 {[%emt 0:05:12] C45: Scotch Game.} a5 {[%emt 0:00:06]
Strongly threatening ...a4.} 8. a4 {[%emt 0:08:22]} O-O {[%emt 0:01:24]} 9. Be3
{[%emt 0:15:07] The position is equal.} Bxe3 {[%emt 0:09:17]} 10. Qxe3 {
[%emt 0:00:12]} d6 {[%emt 0:05:26] [#]} 11. Be2 $146 {[%emt 0:17:23]} ({
Predecessor:} 11. O-O-O Re8 12. f3 Nd7 13. g4 Nb6 14. Nd4 Nxd4 15. Qxd4 Bd7 16.
h4 Qe7 17. b3 {1-0 (42) Hakobyan,A (2554)-Petrosyan,M (2581) Manavgat 2018})
11... Re8 {[%emt 0:14:44][%cal Yf6e4]} 12. O-O-O {[%emt 0:03:17]} Qe7 {[%emt 0:
00:00][%cal Rf6e4]} 13. Rhe1 {[%emt 0:00:56]} Nb4 {[%emt 0:10:42]} 14. h3 {
[%emt 0:10:21]} Bd7 {[%emt 0:09:06][%cal Rf6e4]} (14... Nxe4 $2 15. Bb5 Bf5 16.
Bxe8 Nxc2 17. Qf4 (17. Kxc2 Nc5+ 18. Ne4 Bxe4+ 19. Kc1 Nxb3+ 20. Qxb3 Rxe8 $16)
17... Nxe1 18. Rxe1 $18) 15. Bf1 {[%emt 0:05:41]} Bc6 {[%emt 0:02:29][%cal
Rc6e4]} 16. Nd4 {[%emt 0:01:58]} Qd7 {[%emt 0:02:05]} (16... Bxe4 $2 17. f3 $16
) 17. Qf3 {[%emt 0:06:24]} ({White should try} 17. Bb5 $14) 17... Re5 {[%emt 0:
00:00]} 18. Nxc6 {[%emt 0:06:30]} Qxc6 {[%emt 0:02:10]} 19. Kb1 {[%emt 0:03:14]
} Qc5 {[%emt 0:01:06]} 20. Bd3 {[%emt 0:01:12]} Rae8 {[%emt 0:02:27]} 21. Qe3 {
[%emt 0:02:22]} Qxe3 {[%emt 0:02:51]} 22. Rxe3 {[%emt 0:00:01]} c6 {[%emt 0:00:
00]} 23. f4 {[%emt 0:01:30]} R5e7 {[%emt 0:00:56]} 24. Rf3 {[%emt 0:00:01]} d5
{[%emt 0:04:02]} 25. e5 {[%emt 0:00:07]} (25. exd5 $1 $11 Nfxd5 26. Nxd5 Nxd5
27. g4) 25... Nd7 $15 {[%emt 0:00:27]} 26. Bf5 {[%emt 0:01:38]} Nc5 {[%emt 0:
00:00] And now ...g6 would win.} 27. h4 {[%emt 0:00:01]} g6 {[%emt 0:04:13]}
28. Bh3 {[%emt 0:00:05]} f6 {[%emt 0:02:44]} 29. exf6 {[%emt 0:01:59]} Re1 {
[%emt 0:00:02] aiming for ...d4.} 30. f5 $2 {[%emt 0:02:27] [#]} (30. Rf1 $17
Rxf1 31. Rxf1) 30... Kf7 $2 {[%emt 0:01:11]} ({Black should play} 30... R8e2 $1
$19 {White must now prevent ...Rxd1+.} 31. fxg6 (31. Rc1 Rxc1+) 31... hxg6 $1)
31. fxg6+ {[%emt 0:00:30]} hxg6 {[%emt 0:00:02]} 32. Rf1 {[%emt 0:00:42]} Rxd1+
{[%emt 0:04:25]} 33. Nxd1 {[%emt 0:00:14]} Ne4 {[%emt 0:00:00] Hoping for ...
Nd2+.} 34. Rf4 {[%emt 0:00:24] [#]} d4 $1 {[%emt 0:01:36] Threatens to win
with ...d3. Black has strong compensation. Black is more active.} 35. c3 $2 {
[%emt 0:01:27]} (35. h5 $17 gxh5 36. Bf5) 35... Nd2+ {[%emt 0:01:28] Pair of
Knights!} 36. Ka1 {[%emt 0:00:02]} Nd3 {[%emt 0:00:00]} 37. Rg4 {[%emt 0:00:01]
} (37. Rxd4 $19 Nb3+ 38. Kb1 Nxd4 39. cxd4) 37... Re1 {[%emt 0:00:18] Black
mates.} 38. Ka2 {[%emt 0:00:04]} Nc1+ {[%emt 0:00:00]} 39. Ka1 {[%emt 0:00:09]}
Ncb3+ {[%emt 0:00:12]} 40. Ka2 {[%emt 0:00:10]} Rxd1 {[%emt 0:00:05] Weighted
Error Value: White=0.50/Black=0.24 (precise)} 0-1

[Event "44th Chess Olympiad Open 2022"]
[Site "Chennai"]
[Date "2022.08.02"]
[Round "5.8"]
[White "Repka, Christopher"]
[Black "Vakhidov, Jakhongir"]
[Result "0-1"]
[WhiteElo "2516"]
[BlackElo "2564"]
[Annotator "TA"]
[PlyCount "142"]
[EventDate "2022.??.??"]
[TimeControl "60"]

{[%evp 11,142,40,39,43,41,48,42,37,38,37,33,29,26,25,31,31,42,25,31,35,34,23,
23,25,23,18,21,21,21,7,14,0,0,0,0,0,0,-18,-12,-8,-11,-15,-18,-22,-8,-11,-9,-13,
0,0,0,0,0,-16,-15,-12,-22,-14,-22,-31,-25,-25,-17,-23,-19,-31,-12,-31,-22,-22,
-22,-22,-7,-14,0,-18,-8,-21,-21,-14,0,-16,0,0,0,0,0,-16,-14,-14,-8,-14,-14,-30,
-8,-8,-8,-36,-33,-33,-35,-24,-26,-77,-77,-182,-67,-147,-147,-147,-147,-162,
-162,-162,-162,-162,-147,-155,-147,-147,-70,-155,-147,-148,-148,-148,-147,-147,
-147,-147,-147,-29971,-29970]} 1. Nf3 {[%emt 0:00:02]} g6 {[%emt 0:02:10]} 2.
e4 {[%emt 0:01:35]} c5 {[%emt 0:00:22]} 3. d4 {[%emt 0:00:37]} cxd4 {[%emt 0:
00:00]} 4. Nxd4 {[%emt 0:00:05]} Bg7 {[%emt 0:00:24]} 5. c4 {[%emt 0:01:03]}
Nc6 {[%emt 0:00:07]} 6. Be3 {[%emt 0:00:40]} Qb6 $1 {[%emt 0:00:06][%cal Rc6d4]
is more profitable than 6...Nf6 at the moment.} 7. Nb3 {[%emt 0:00:30] B38:
Sicilian: Maroczy Bind with 5...Bg7 and 7...0-0.} Qd8 {[%emt 0:00:07]} 8. Qd2 {
[%emt 0:01:05]} Nf6 {[%emt 0:00:07]} 9. Nc3 {[%emt 0:00:07] White is slightly
better.} Ng4 {[%emt 0:00:13]} 10. Bf4 {[%emt 0:04:20]} d6 {[%emt 0:00:00]} 11.
h3 {[%emt 0:03:07]} Nf6 {[%emt 0:00:07] [#]} 12. Be2 $146 {[%emt 0:00:00]} ({
Predecessor:} 12. Bh6 O-O 13. Bxg7 Kxg7 14. O-O-O Be6 15. Kb1 Rc8 16. Qe3 {
0-1 (51) Klimkowski,J (2350)-Malek,J (2230) Sypniewo 2022}) 12... O-O {[%emt 0:
03:38]} 13. O-O {[%emt 0:05:52]} Be6 {[%emt 0:00:20]} 14. Rad1 {[%emt 0:09:43]}
Nd7 {[%emt 0:14:45]} 15. Be3 {[%emt 0:02:06]} (15. Nd5 {seems wilder.} a5 16.
Bh6 a4 17. Bxg7 Kxg7 18. Nd4) 15... Rc8 {[%emt 0:25:18]} 16. f4 {[%emt 0:10:33]
Against Nce5} (16. Nd5 {feels hotter.} a5 17. Bh6 Bxh6 18. Qxh6 a4 19. Nd4)
16... Na5 $1 {[%emt 0:03:44]} 17. Nxa5 {[%emt 0:01:32]} ({Avoid the trap} 17.
Bxa7 $2 Nxc4 18. Qc1 Nxb2 $1 19. Qxb2 Bxc3 $19) 17... Qxa5 {[%emt 0:00:07]} 18.
Nd5 {[%emt 0:00:45]} Qxd2 $1 {[%emt 0:01:25]} 19. Nxe7+ {[%emt 0:11:36]} Kh8 {
[%emt 0:00:12]} 20. Bxd2 {[%emt 0:01:34]} Rce8 {[%emt 0:00:16] [#]} 21. Bb4 $1
{[%emt 0:02:09]} Rxe7 {[%emt 0:00:22]} 22. Bxd6 {[%emt 0:05:48]} Ree8 {[%emt 0:
00:08]} 23. Bxf8 {[%emt 0:09:54]} Nxf8 {[%emt 0:00:00]} 24. e5 {[%emt 0:00:03]}
f6 {[%emt 0:04:24]} 25. exf6 {[%emt 0:02:30]} Bxf6 {[%emt 0:00:07]} 26. Rd2 {
[%emt 0:05:13]} Be7 {[%emt 0:04:37] Black has compensation. This bishop pair
is nice.} 27. Rfd1 {[%emt 0:00:41]} Bc5+ {[%emt 0:03:29]} 28. Kh1 {[%emt 0:01:
08]} Kg7 {[%emt 0:00:49]} 29. Bf3 {[%emt 0:02:54]} Re7 {[%emt 0:03:08]} (29...
Bxc4 $2 30. Rc2 $18) 30. Re2 {[%emt 0:00:31]} b6 {[%emt 0:07:11]} (30... Bxc4
$2 31. Rc2 $18) 31. Bd5 {[%emt 0:06:09]} Rd7 {[%emt 0:01:03]} 32. Red2 {
[%emt 0:00:31]} Be3 {[%emt 0:00:00][%csl Yd2,Yf4]} 33. Rd3 {[%emt 0:00:04]}
Bxd5 $1 {[%emt 0:00:32]} ({Don't do} 33... Bxf4 34. Bxe6 Rxd3 35. Rxd3 $14) 34.
Rxd5 {[%emt 0:00:33]} Rc7 {[%emt 0:00:35]} 35. f5 {[%emt 0:02:40]} Rxc4 {
[%emt 0:01:09]} 36. fxg6 {[%emt 0:00:05]} hxg6 {[%emt 0:00:09]} 37. Re1 {
[%emt 0:00:34]} Bc5 {[%emt 0:00:00]} 38. Re2 {[%emt 0:02:30] Against Rc2} a5 {
[%emt 0:02:40]} 39. g3 {[%emt 0:00:00]} Rc1+ {[%emt 0:04:59]} 40. Kg2 {[%emt 0:
00:04]} Rg1+ {[%emt 0:00:07]} 41. Kh2 {[%emt 0:30:46][%cal Yd5c5]} Rf1 {
[%emt 0:30:08]} 42. Kg2 {[%emt 0:00:00]} Rf7 {[%emt 0:03:26]} 43. Rd3 {[%emt 0:
01:33]} Nh7 {[%emt 0:00:24]} 44. Rd8 {[%emt 0:00:17]} Nf6 {[%emt 0:01:35]} 45.
Rd3 {[%emt 0:01:20]} Ng8 {[%emt 0:00:00]} 46. Red2 {[%emt 0:00:00]} Bb4 {
[%emt 0:00:00]} 47. Re2 {[%emt 0:00:00]} Nh6 {[%emt 0:00:00]} 48. a3 {[%emt 0:
00:00]} Bc5 {[%emt 0:00:00]} 49. Red2 {[%emt 0:00:00]} Nf5 {[%emt 0:00:00]} 50.
Re2 {[%emt 0:00:00] Prevents Ne3+.} g5 {[%emt 0:06:07]} 51. Re4 {[%emt 0:00:00]
} Nd6 {[%emt 0:01:02]} 52. Re2 {[%emt 0:00:00] Prevents Rf2+.} a4 {[%emt 0:02:
45]} 53. Rf3 {[%emt 0:00:00]} Nc4 {[%emt 0:03:39]} 54. Rc3 {[%emt 0:00:00]} b5
{[%emt 0:01:22]} 55. b3 {[%emt 0:00:00]} axb3 {[%emt 0:00:05]} 56. Rxb3 {
[%emt 0:00:00]} Rb7 {[%emt 0:00:42]} 57. Kf3 {[%emt 0:03:42]} (57. Re8 $11 {
keeps the balance.}) 57... Bxa3 $17 {[%emt 0:00:22] Black is more active.} 58.
Kg4 {[%emt 0:00:03] [#]} (58. Rc2 $17) 58... Be7 {[%emt 0:01:40]} (58... b4 $1
$19 {And now ...Na5 would win.} 59. Re1 Rb5) 59. Rxe7+ {[%emt 0:00:29]} Rxe7 {
[%emt 0:00:05]} 60. Rxb5 $15 {[%emt 0:00:04] Endgame KRN-KR} Kh6 {[%emt 0:00:
28]} 61. Rc5 {[%emt 0:02:34]} Re4+ {[%emt 0:00:50]} 62. Kf3 {[%emt 0:03:15]}
Nd2+ {[%emt 0:00:00]} 63. Kf2 {[%emt 0:00:02]} Re6 {[%emt 0:00:42] Prevents
Rc6. ( -> ... Ne4+)} 64. Rb5 {[%emt 0:00:02]} Rf6+ {[%emt 0:00:17]} 65. Kg2 {
[%emt 0:00:08] [#]} Ne4 {[%emt 0:00:37]} (65... Nf3 $1 $17 66. Rd5 Rf7) 66. Rb2
{[%emt 0:00:00]} ({White should try} 66. g4 $1 $15) 66... Kg6 {[%emt 0:00:32]}
67. Ra2 {[%emt 0:00:28]} Rc6 {[%emt 0:00:35]} 68. Kf3 {[%emt 0:00:19]} Kf5 {
[%emt 0:00:00] White must now prevent ...Rc3+.} 69. Ra5+ {[%emt 0:02:33]} Rc5 {
[%emt 0:00:00]} 70. Rxc5+ {[%emt 0:01:03]} Nxc5 {[%emt 0:00:02]} 71. Ke3 $2 {
[%emt 0:00:00]} (71. g4+ $17 Ke5 72. Kg3 Ne4+ 73. Kf3) 71... Nb3 {[%emt 0:00:
00] Weighted Error Value: White=0.09 (flawless) /Black=0.06 (flawless)} 0-1

[Event "44th Chess Olympiad Open 2022"]
[Site "Chennai"]
[Date "2022.08.02"]
[Round "5.9"]
[White "Giri, Anish"]
[Black "Hansen, Eric"]
[Result "1-0"]
[WhiteElo "2760"]
[BlackElo "2606"]
[Annotator "TA"]
[PlyCount "80"]
[EventDate "2022.??.??"]
[TimeControl "60"]

{[%evp 12,80,8,0,23,27,37,28,33,20,37,47,36,22,26,6,31,-12,-8,-12,0,0,0,0,0,0,
0,0,41,30,35,22,22,22,27,35,35,35,42,47,66,12,8,0,0,0,58,47,53,56,132,5,135,
112,118,121,124,117,117,117,153,82,108,0,124,82,160,147,411,357,234]} 1. d4 {
[%emt 0:00:03]} d5 {[%emt 0:01:57]} 2. c4 {[%emt 0:00:18]} e6 {[%emt 0:00:53]}
3. Nf3 {[%emt 0:00:19]} Nf6 {[%emt 0:02:20]} 4. g3 {[%emt 0:00:18]} Bb4+ {
[%emt 0:02:06]} 5. Bd2 {[%emt 0:00:15]} Be7 {[%emt 0:02:37]} 6. Bg2 {[%emt 0:
00:00]} O-O {[%emt 0:00:07]} 7. O-O {[%emt 0:00:06]} dxc4 {[%emt 0:04:25] E11:
Bogo-Indian.} 8. Qa4 {[%emt 0:08:55] is the legacy move (8.Qc2).} (8. Qc2 {
keeps more tension.} b5 9. Ne5 Nd5 10. a4) 8... Bd7 {[%emt 0:04:08]} 9. Qxc4 {
[%emt 0:00:10]} Bc6 {[%emt 0:00:04] White has an edge.} 10. Rc1 $5 {[%emt 0:00:
00] [#] Leaves trodden paths.} Nbd7 $146 {[%emt 0:13:20]} ({Predecessor:} 10...
Ne4 11. Be1 Nd6 12. Qc2 Nd7 13. Nbd2 Nf6 14. e3 Rc8 15. Ne5 Bxg2 16. Kxg2 Nf5 {
½-½ (72) Riediger,M (2252)-Sandholzer,R (2095) Austria 2010}) 11. Nc3 {
[%emt 0:01:17]} a6 {[%emt 0:04:44]} 12. Bf4 {[%emt 0:17:16]} Rc8 {[%emt 0:20:
55]} 13. a3 {[%emt 0:01:05]} Nd5 {[%emt 0:07:02]} 14. b4 {[%emt 0:04:12]} N7b6
{[%emt 0:04:57]} 15. Qd3 {[%emt 0:01:33]} Nxc3 {[%emt 0:00:00]} (15... Nxf4 {
feels hotter.} 16. gxf4 f5 17. Ne5 Bxg2 18. Kxg2 Bd6) 16. Rxc3 {[%emt 0:00:45]}
Nd5 {[%emt 0:04:16]} 17. Rxc6 {[%emt 0:01:24] Rc2 is the strong threat.} Nxf4 {
[%emt 0:00:27]} 18. gxf4 {[%emt 0:00:15] Strongly threatening Rc2.} bxc6 {
[%emt 0:00:05]} 19. Rc1 {[%emt 0:06:11]} Bd6 {[%emt 0:00:00]} 20. e3 {[%emt 0:
02:28]} h6 {[%emt 0:01:16]} 21. Qxa6 {[%emt 0:03:06]} Ra8 {[%emt 0:04:52]} 22.
Qd3 {[%emt 0:00:14]} g5 {[%emt 0:00:39]} 23. fxg5 {[%emt 0:03:30]} (23. Rxc6
gxf4 24. e4 Kh8 $15) 23... hxg5 {[%emt 0:00:03]} 24. h3 {[%emt 0:00:21]} f5 {
[%emt 0:03:18]} 25. Rxc6 {[%emt 0:02:26]} Qf6 {[%emt 0:00:00]} 26. Nd2 {
[%emt 0:05:14]} (26. Ne5 $14) 26... g4 $11 {[%emt 0:02:30]} 27. hxg4 {[%emt 0:
01:20]} fxg4 {[%emt 0:00:06]} 28. Ne4 {[%emt 0:00:12][%csl Yd6,Yf6]} ({Much
worse is} 28. f4 gxf3 29. Nxf3 Rf7 $19) 28... Qf5 {[%emt 0:00:00]} (28... Qh6
$11 29. Rc2 (29. Nxd6 cxd6 30. Rxd6 Qh4 $11) 29... Qh2+ 30. Kf1 g3 31. Nxd6
cxd6) 29. Rc2 {[%emt 0:10:20][%cal Yc6c2,Yc2d2,Yd2d3]} Ra7 {[%emt 0:02:45]} (
29... Qh7 $2 30. Nf6+ $1 Rxf6 31. Qxh7+ Kxh7 32. Bxa8 $18) 30. Rd2 {[%emt 0:00:
33]} Be7 {[%emt 0:03:13]} (30... Qh5 $14) 31. Ng3 {[%emt 0:04:03]} (31. Qb3 $1
$16) 31... Qg5 {[%emt 0:01:10]} (31... Qxd3 $11 {remains equal.} 32. Rxd3 Kf7)
32. Qb3 $16 {[%emt 0:03:45]} Kh8 {[%emt 0:00:00] [#]} 33. d5 $1 {[%emt 0:02:20]
} Rd8 {[%emt 0:03:35]} 34. Rd3 {[%emt 0:00:00]} exd5 {[%emt 0:00:52]} 35. Bxd5
{[%emt 0:00:23]} ({Don't do} 35. Rxd5 Rxd5 36. Bxd5 Bd6) 35... Qe5 {[%emt 0:02:
43]} 36. Qc4 {[%emt 0:04:18] Inhibits c5.} (36. Be4 $142 {White threatens Qf7
and mate.} Rxd3 37. Qxd3) 36... Bh4 {[%emt 0:00:59] [#]} 37. Ne2 {[%emt 0:01:
53]} (37. e4 $1 $16) 37... Bg5 {[%emt 0:01:25]} (37... Qf6 $1 $11 {keeps the
balance.} 38. Nf4 g3 39. fxg3 Bxg3) 38. Kg2 {[%emt 0:01:10]} Rd6 {[%emt 0:00:
29]} (38... c5 $142) 39. Nf4 {[%emt 0:03:48] aiming for Qc5. Really sharp!}
Bxf4 $4 {[%emt 0:01:18]} (39... g3 $16) 40. exf4 $18 {[%emt 0:00:08]} Qf6 {
[%emt 0:00:00] Weighted Error Value: White=0.22 (precise) /Black=0.33} 1-0